bitfinex-derivatives/quotes_ETHF0:USTF0_20250309
["timestamp","ask_amount","ask_price","bid_price","bid_amount"]
[1741537656807,2.587,2085.9,2085.4,40.8]
[1741537657008,3.2078,2086.1,2086.0,0.95894]
[1741537657206,0.00719355,2085.9,2085.4,40.8]
[1741537657712,0.00719355,2085.9,2085.4,44.0078]
[1741537657911,0.00719355,2085.9,2084.8,3.2078]
[1741537657912,8.78799355,2085.9,2084.8,3.2078]
[1741537658112,3.2078,2085.6,2084.8,3.2078]
[1741537658413,0.00719355,2085.9,2085.1,3.2078]
[1741537658709,0.00719355,2085.9,2085.4,3.2078]
[1741537659011,0.95905,2085.8,2085.4,4.167]
[1741537659207,0.00719355,2085.9,2085.5,0.95917]
[1741537659403,0.95905,2085.8,2085.5,0.95914]
[1741537659606,0.00719355,2085.9,2085.7,4.16685]
[1741537659806,0.00719355,2085.9,2085.7,3.2078]
[1741537660008,0.95903,2085.8,2085.7,3.2078]
[1741537660213,0.00719355,2085.9,2085.7,3.2078]
[1741537660605,24.083,2087.1,2085.9,2.39747]
[1741537660809,3.2078,2087.2,2086.5,3.2078]
[1741537661115,3.2078,2087.2,2086.4,2.588]
[1741537661314,3.2078,2087.2,2086.6,40.8]
[1741537661618,2.588,2087.4,2087.0,3.2078]
[1741537661821,24.096,2087.9,2087.3,3.2078]
[1741537662011,0.96549355,2087.4,2087.3,3.2078]
[1741537662212,0.00719355,2087.4,2087.3,3.2078]
[1741537662614,0.00719355,2087.4,2087.0,3.2078]
[1741537662812,0.00719355,2087.4,2087.3,0.95834]
[1741537663207,0.00719355,2087.4,2087.3,4.16614]
[1741537663820,2.588,2087.9,2087.3,8.16614]
[1741537664021,3.2078,2088.2,2087.6,3.2078]
[1741537664022,5.7958,2088.2,2087.6,3.2078]
[1741537664321,0.95816,2087.8,2087.4,2.76818]
[1741537664521,0.95813,2087.8,2087.5,0.95823]
[1741537664722,0.95798,2088.1,2087.7,3.2078]
[1741537664920,1.7057,2088.4,2087.7,3.2078]
[1741537665128,3.2078,2088.9,2088.2,3.2078]
[1741537665415,0.00719355,2088.3,2088.2,3.2078]
[1741537665616,0.95795,2088.2,2087.9,4.16585]
[1741537665919,0.95798,2088.1,2088.0,40.80719355]
[1741537666111,0.00719355,2088.3,2088.0,40.80719355]
[1741537666312,9.2543,2089.0,2088.1,0.95796]
[1741537666515,0.95798,2088.1,2088.0,40.80719355]
[1741537667022,3.2078,2088.4,2088.0,40.80719355]
[1741537667220,0.95775,2088.6,2088.3,0.95788]
[1741537667616,0.00719355,2088.4,2088.2,3.2078]
[1741537667820,0.00719355,2088.4,2088.0,40.80719355]
[1741537668319,0.95798,2088.1,2088.0,0.00719355]
[1741537668521,0.95796,2088.2,2088.0,0.00719355]
[1741537668719,0.95789,2088.3,2088.1,0.95794]
[1741537668922,0.00719355,2088.4,2088.3,0.95788]
[1741537669318,0.96504355,2088.4,2088.2,3.2078]
[1741537669525,0.95788,2088.3,2088.0,3.55319355]
[1741537670119,0.00719355,2088.4,2088.3,0.95788]
[1741537670322,3.2078,2088.8,2088.7,0.9577]
[1741537670520,3.2078,2089.1,2088.5,3.2078]
[1741537671119,0.95769,2088.8,2088.5,4.16559]
[1741537671327,0.95766,2088.8,2088.5,4.16557]
[1741537671533,0.95775,2088.6,2088.5,3.2078]
[1741537672126,0.95787,2088.4,2088.1,0.95798]
[1741537672525,3.2078,2088.5,2088.0,3.21499355]
[1741537672721,0.95798,2088.1,2088.0,0.00719355]
[1741537672916,0.95795,2088.2,2088.0,0.00719355]
[1741537673114,0.95798,2088.1,2088.0,0.00719355]
[1741537673330,3.2078,2088.5,2088.0,0.00719355]
[1741537673720,0.95795,2088.2,2088.0,0.00719355]
[1741537673925,3.2078,2088.5,2088.0,0.00719355]
[1741537674429,0.95798,2088.1,2088.0,0.00719355]
[1741537674617,0.95795,2088.2,2088.0,0.00719355]
[1741537674819,0.95784,2088.4,2088.1,0.95796]
[1741537675230,2.587,2088.7,2088.2,3.2078]
[1741537675422,3.2078,2088.8,2088.3,0.95788]
[1741537675623,0.95778,2088.6,2088.3,0.95788]
[1741537676124,3.2078,2088.8,2088.2,3.2078]
[1741537676524,3.2078,2088.8,2088.6,0.95773]
[1741537676723,0.95771,2088.7,2088.5,0.95777]
[1741537677026,3.2078,2088.8,2088.2,3.2078]
[1741537678427,3.2078,2088.8,2088.3,2.39472]
[1741537678623,4.16546,2088.8,2088.2,5.60258]
[1741537678830,0.95777,2088.6,2088.2,3.2078]
[1741537679026,0.95781,2088.5,2088.4,40.8]
[1741537679426,5.60199,2088.8,2088.2,4.16573]
[1741537679629,0.95786,2088.4,2088.2,4.16573]
[1741537679829,3.2078,2088.8,2088.2,3.2078]
[1741537680029,3.2078,2088.8,2088.3,40.8]
[1741537680238,3.2078,2088.8,2088.3,41.75787]
[1741537680533,0.95781,2088.5,2088.3,41.75786]
[1741537680726,3.2078,2088.8,2088.3,40.8]
[1741537681131,4.16564,2088.4,2088.3,40.8]
[1741537681633,0.95784,2088.5,2088.3,40.8]
[1741537681825,0.95778,2088.6,2088.3,40.8]
[1741537682026,3.2078,2088.7,2088.6,0.95775]
[1741537682231,0.00719355,2088.9,2088.3,40.8]
[1741537682630,0.95798,2088.1,2088.0,0.00719355]
[1741537683022,2.587,2088.2,2088.1,0.95798]
[1741537683227,0.95796,2088.2,2088.0,0.96519355]
[1741537683434,2.587,2088.5,2088.0,0.00719355]
[1741537683632,2.587,2088.5,2088.1,40.8]
[1741537683833,3.2078,2088.6,2088.1,40.8]
[1741537684632,0.95793,2088.2,2088.1,40.8]
[1741537685927,4.8915,2088.6,2088.1,40.8]
[1741537686124,7.4785,2088.6,2088.1,44.0078]
[1741537686431,5.7948,2088.6,2088.1,44.0078]
[1741537686627,0.95784,2088.5,2088.3,0.95787]
[1741537686822,2.587,2088.6,2088.1,44.0078]
[1741537687034,2.64137,2088.8,2088.6,0.95772]
[1741537687226,0.00719355,2088.9,2088.4,3.2078]
[1741537687637,0.95772,2088.7,2088.5,0.95776]
[1741537687828,0.00719355,2088.9,2088.4,3.2078]
[1741537688132,0.95786,2088.4,2088.2,2.668]
[1741537688341,0.95781,2088.5,2088.3,0.95788]
[1741537688532,3.2078,2088.7,2088.2,1.7101]
[1741537688732,3.2078,2088.7,2088.4,3.2078]
[1741537688932,3.2078,2088.7,2088.6,0.95775]
[1741537689130,0.00719355,2088.9,2088.4,3.2078]
[1741537689433,0.00719355,2088.9,2088.8,0.95765]
[1741537689632,0.95765,2088.8,2088.7,4.16548]
[1741537689829,0.95765,2088.8,2088.5,1.7693]
[1741537689830,0.95766,2088.8,2088.5,1.7693]
[1741537690132,0.96484355,2088.9,2088.7,0.9577]
[1741537690328,0.00719355,2088.9,2088.8,0.95765]
[1741537691228,0.96480355,2088.9,2088.7,3.2078]
[1741537691431,0.00719355,2088.9,2088.4,3.2078]
[1741537691634,0.95788,2088.3,2088.2,2.586]
[1741537691830,0.95787,2088.4,2088.2,0.95791]
[1741537692031,2.39426,2088.7,2088.2,0.95791]
[1741537692232,0.9579,2088.3,2088.1,44.96576]
[1741537692535,3.2078,2088.6,2087.9,2.586]
[1741537692730,0.95792,2088.3,2087.9,2.586]
[1741537692939,3.2078,2088.6,2087.9,2.586]
[1741537693236,3.2078,2088.6,2088.2,0.95789]
[1741537693237,0.95786,2088.4,2088.2,0.95789]
[1741537693432,4.16556,2088.6,2088.4,0.95781]
[1741537693636,0.95776,2088.6,2088.4,4.16561]
[1741537693836,4.3051,2088.8,2088.4,3.2078]
[1741537694133,3.21499355,2088.9,2088.8,0.95765]
[1741537694345,3.21499355,2088.9,2088.4,3.2078]
[1741537694534,0.95768,2088.8,2088.6,0.95773]
[1741537695041,0.00719355,2088.9,2088.8,0.95765]
[1741537695235,0.95767,2088.8,2088.6,0.95772]
[1741537696243,0.00719355,2088.9,2088.4,3.2078]
[1741537696534,0.00719355,2088.9,2088.1,43.749]
[1741537696535,0.95771,2088.7,2088.2,2.39483]
[1741537696728,3.21499355,2088.9,2088.1,46.9568]
[1741537696927,3.21499355,2088.9,2088.2,2.39483]
[1741537697133,3.21499355,2088.9,2088.4,3.2078]
[1741537697533,4.17262355,2088.9,2088.7,0.95768]
[1741537697752,0.00719355,2088.9,2088.8,0.95765]
[1741537698444,0.00719355,2088.9,2088.8,41.75765]
[1741537699347,0.00719355,2088.9,2088.8,40.8]
[1741537699348,0.96480355,2088.9,2088.8,40.8]
[1741537700340,0.00719355,2088.9,2088.8,41.75765]
[1741537701844,3.2078,2089.3,2089.2,0.95747]
[1741537702251,0.95735,2089.5,2089.0,3.2078]
[1741537702544,3.2078,2089.7,2089.1,2.3938]
[1741537702741,3.2078,2089.7,2089.0,3.2078]
[1741537702942,3.2078,2089.7,2089.1,0.95749]
[1741537702943,2.40042355,2089.6,2089.1,0.95749]
[1741537703143,0.00719355,2089.6,2089.1,0.00719355]
[1741537703346,0.00719355,2089.6,2089.5,0.95733]
[1741537705045,3.2078,2090.0,2089.9,0.95715]
[1741537705254,3.2078,2090.0,2089.9,40.8]
[1741537705450,4.16491,2090.0,2089.9,40.8]
[1741537705654,4.16491,2090.0,2089.9,41.75715]
[1741537705848,4.16491,2090.0,2089.9,40.8]
[1741537707351,3.2078,2090.0,2089.5,0.9573]
[1741537707654,0.95729,2089.6,2089.5,0.95731]
[1741537707852,0.95729,2089.6,2089.5,41.75733]
[1741537708151,3.2078,2089.7,2089.4,0.95736]
[1741537708355,3.2078,2089.7,2089.2,6.67834]
[1741537708553,3.2078,2089.7,2089.6,0.95729]
[1741537708749,2.585,2090.0,2089.3,43.19352]
[1741537708949,4.16488,2090.1,2089.9,0.95712]
[1741537709150,3.2078,2090.1,2089.6,3.2078]
[1741537709351,3.2078,2090.1,2090.0,0.95711]
[1741537709557,4.16486,2090.1,2089.9,0.95712]
[1741537709755,3.2078,2090.1,2090.0,0.95711]
[1741537709955,3.2078,2090.1,2089.7,1.8122]
[1741537710254,0.00456014,2090.2,2090.1,0.95706]
[1741537710458,4.3505,2090.9,2090.1,2.585]
[1741537710459,3.2078,2090.8,2090.1,2.585]
[1741537710751,3.2078,2090.8,2090.7,0.95678]
[1741537710955,3.2078,2091.4,2091.3,0.95649]
[1741537711255,3.5746,2091.9,2091.3,3.2078]
[1741537711455,3.2078,2091.5,2091.3,40.8]
[1741537711760,0.95646,2091.4,2091.3,40.8]
[1741537712558,8.97623,2091.4,2090.5,3.2078]
[1741537712751,0.95683,2090.6,2090.5,3.2078]
[1741537712957,0.95689,2090.5,2090.2,4.9412]
[1741537713156,3.2078,2090.8,2090.2,4.9412]
[1741537713351,0.95686,2090.6,2090.2,5.8982]
[1741537713552,0.95686,2090.6,2090.3,40.8]
[1741537713752,0.0071175,2090.6,2090.2,4.948376]
[1741537714059,0.9639775,2090.6,2090.2,5.905386]
[1741537714261,0.0071175,2090.6,2090.2,4.948376]
[1741537714855,0.95697,2090.3,2090.2,3.214976]
[1741537715056,0.95694,2090.4,2090.2,0.007176]
[1741537715354,0.0071175,2090.6,2090.2,0.007176]
[1741537715659,0.95693,2090.4,2090.2,3.214976]
[1741537716062,0.0071175,2090.6,2090.2,3.214976]
[1741537716354,0.95697,2090.3,2090.2,0.007176]
[1741537716963,3.2078,2090.4,2089.7,2.584]
[1741537717161,0.95713,2090.0,2089.7,2.584]
[1741537717362,3.2078,2090.4,2089.8,40.8]
[1741537717758,0.95708,2090.1,2089.8,40.8]
[1741537717956,3.2078,2090.4,2089.8,40.8]
[1741537718150,3.2078,2090.4,2089.8,41.75716]
[1741537718353,3.2078,2090.4,2089.9,3.2078]
[1741537718555,0.95706,2090.1,2089.9,3.2078]
[1741537719263,0.95711,2090.0,2089.9,3.2078]
[1741537719464,3.2078,2090.4,2089.8,40.8]
[1741537719659,0.95715,2089.9,2089.8,40.8]
[1741537720559,3.2078,2090.1,2089.8,40.8]
[1741537720763,0.95714,2090.0,2089.8,40.8]
[1741537720951,0.95712,2090.0,2089.8,40.8]
[1741537721563,3.2078,2090.1,2089.8,40.8]
[1741537721863,0.95711,2090.0,2089.8,40.8]
[1741537722064,3.2078,2090.1,2089.8,40.8]
[1741537722265,0.95715,2089.9,2089.8,40.8]
[1741537722860,3.2078,2090.1,2089.8,40.8]
[1741537723060,0.95712,2090.0,2089.8,40.8]
[1741537723463,3.2078,2090.1,2089.8,40.8]
[1741537723661,3.2078,2090.1,2090.0,0.95711]
[1741537723862,2.985,2090.5,2089.9,4.16492]
[1741537723863,0.95702,2090.2,2089.9,4.16492]
[1741537724166,0.95706,2090.1,2089.9,4.16492]
[1741537724368,0.95701,2090.2,2089.9,4.16492]
[1741537724570,3.2078,2090.4,2089.9,3.2078]
[1741537724869,3.2078,2090.4,2089.8,40.8]
[1741537725052,0.95714,2090.0,2089.8,40.8]
[1741537725252,0.95715,2089.9,2089.8,40.8]
[1741537725456,5.60007,2090.5,2089.8,40.8]
[1741537725666,0.95715,2089.9,2089.8,40.8]
[1741537727167,2.39231,2090.4,2089.8,40.8]
[1741537727365,0.95712,2090.0,2089.8,41.75718]
[1741537727569,3.2078,2090.5,2089.9,3.2078]
[1741537728070,0.95703,2090.2,2089.9,3.2078]
[1741537728265,0.95711,2090.0,2089.9,3.2078]
[1741537728570,0.95715,2089.9,2089.8,40.8]
[1741537729770,2.39241,2090.4,2089.8,40.8]
[1741537729961,0.9571,2090.1,2089.9,3.2078]
[1741537730160,0.95708,2090.1,2089.9,4.16494]
[1741537730362,3.2078,2090.2,2089.8,40.8]
[1741537730567,0.95715,2089.9,2089.8,40.8]
[1741537731566,4.16495,2089.9,2089.8,40.8]
[1741537732070,0.95715,2089.9,2089.8,40.8]
[1741537733166,1.7809,2090.2,2089.8,40.8]
[1741537733371,0.95713,2090.0,2089.8,41.75717]
[1741537733872,1.7809,2090.2,2089.8,40.8]
[1741537734173,4.16474,2090.4,2090.2,0.957]
[1741537734466,2.583,2090.5,2090.0,0.95707]
[1741537734773,0.95705,2090.2,2090.0,0.95707]
[1741537734975,2.583,2090.5,2089.9,3.2078]
[1741537735165,0.95711,2090.0,2089.9,3.2078]
[1741537736386,0.95715,2089.9,2089.8,40.8]
[1741537738084,3.2078,2090.1,2089.8,40.8]
[1741537738282,0.95711,2090.0,2089.8,41.75717]
[1741537738483,0.95715,2089.9,2089.8,40.8]
[1741537738786,0.95712,2090.0,2089.8,41.75718]
[1741537738974,0.95715,2089.9,2089.8,40.8]
[1741537740087,3.2078,2090.1,2089.8,40.8]
[1741537740088,4.16488,2090.1,2089.9,0.95714]
[1741537740384,3.2078,2090.1,2089.8,40.8]
[1741537740787,0.95715,2090.0,2089.8,41.75719]
[1741537741086,3.2078,2090.1,2090.0,0.95711]
[1741537741283,4.9855175,2090.6,2089.9,3.2078]
[1741537741488,3.2149175,2090.6,2090.5,0.95688]
[1741537741780,0.0071175,2090.6,2090.5,0.95688]
[1741537742180,0.0071175,2090.6,2090.5,4.16468]
[1741537742385,0.95657,2091.2,2091.0,0.95662]
[1741537742683,7.5867,2091.4,2090.8,4.16452]
[1741537742684,2.39128,2091.3,2090.8,4.16452]
[1741537742883,7.5867,2091.4,2090.9,0.95669]
[1741537743083,0.95663,2091.1,2091.0,40.8]
[1741537743789,0.95669,2090.9,2090.8,0.007176]
[1741537744186,0.95669,2090.9,2090.8,40.807176]
[1741537744586,4.16449,2090.9,2090.8,6e-06]
[1741537745085,8.16449,2090.9,2090.8,6e-06]
[1741537746086,0.95711,2090.0,2089.8,0.95716]
[1741537746394,2.985,2091.2,2089.8,0.9572]
[1741537746395,0.95718,2089.9,2089.8,0.9572]
[1741537746683,5.6003,2090.3,2089.7,4.16502]
[1741537746888,3.2078,2090.3,2089.8,41.75718]
[1741537747083,3.2078,2090.3,2089.8,40.8]
[1741537747288,0.95715,2089.9,2089.8,40.807176]
[1741537747593,0.95715,2089.9,2089.8,41.764376]
[1741537747783,5.607466,2090.3,2089.8,41.764376]
[1741537747984,3.214976,2090.3,2089.8,40.807176]
[1741537748688,0.95712,2090.0,2089.8,41.764336]
[1741537748887,0.95705,2090.2,2090.0,0.95708]
[1741537749085,0.007176,2090.3,2090.2,0.95701]
[1741537749890,0.007176,2090.3,2090.2,4.95701]
[1741537750092,3.5547,2091.1,2090.3,0.95696]
[1741537750093,0.95693,2090.4,2090.3,0.95696]
[1741537750488,9.3445,2091.1,2090.2,1.6416]
[1741537750792,0.957,2090.3,2090.1,4.16483]
[1741537750989,0.95701,2090.2,2090.1,3.2078]
[1741537751189,0.95715,2089.9,2089.8,40.807176]
[1741537751385,4.16495,2089.9,2089.8,0.007176]
[1741537751785,0.95729,2089.6,2089.5,3.2078]
[1741537751986,0.95729,2089.6,2089.5,40.8]
[1741537752583,4.16509,2089.6,2089.5,40.8]
[1741537753791,0.95729,2089.6,2089.5,40.8]
[1741537755989,4.16509,2089.6,2089.5,40.8]
[1741537756394,0.95722,2089.8,2089.6,0.95727]
[1741537756699,3.2078,2089.9,2089.5,40.8]
[1741537756700,0.95729,2089.6,2089.5,40.8]
[1741537756886,0.95725,2089.7,2089.5,41.75731]
[1741537757088,0.95729,2089.6,2089.5,40.8]
[1741537757390,3.2078,2089.9,2089.6,0.95726]
[1741537757391,0.95721,2089.8,2089.6,0.95726]
[1741537758298,4.2978,2090.0,2089.7,0.95722]
[1741537758497,0.95718,2089.9,2089.7,0.95724]
[1741537758701,4.2978,2090.0,2089.5,44.0078]
[1741537759102,0.9572,2089.8,2089.7,0.95724]
[1741537759301,0.95717,2089.9,2089.7,0.95724]
[1741537759602,5.25493,2090.0,2089.8,0.95718]
[1741537759994,1.7168,2090.0,2089.7,0.95721]
[1741537760189,3.2078,2090.2,2089.6,2.39317]
[1741537760496,0.007176,2090.4,2090.3,0.95697]
[1741537760902,3.2078,2091.1,2090.7,0.95676]
[1741537761104,0.95669,2090.9,2090.8,40.8]
[1741537761494,0.95668,2091.0,2090.8,40.8]
[1741537761696,0.95669,2090.9,2090.8,40.8]
[1741537764596,3.214976,2091.1,2090.6,0.007176]
[1741537764803,0.95678,2090.7,2090.6,0.007176]
[1741537765301,0.95678,2090.7,2090.6,40.807176]
[1741537765690,0.95678,2090.7,2090.6,0.007176]
[1741537767004,3.214976,2091.1,2090.6,0.007176]
[1741537767697,0.95668,2091.0,2090.6,0.007176]
[1741537767900,0.007176,2091.1,2091.0,0.95665]
[1741537768297,0.95641,2091.6,2091.4,0.95645]
[1741537768498,8.17844,2091.9,2091.2,3.2078]
[1741537768708,0.95651,2091.3,2091.2,3.2078]
[1741537768906,0.95649,2091.4,2091.2,4.16434]
[1741537769107,2.39071,2091.8,2091.2,4.16434]
[1741537769303,0.95651,2091.4,2091.3,40.8]
[1741537770098,3.2078,2091.6,2091.3,40.8]
[1741537770300,0.95639,2091.6,2091.4,0.95642]
[1741537770500,0.9564,2091.6,2091.4,0.95645]
[1741537771208,3.2078,2091.9,2091.3,40.8]
[1741537771410,3.2078,2091.9,2091.4,1.7986]
[1741537771796,0.95633,2091.7,2091.4,1.7986]
[1741537772102,3.2078,2091.9,2091.4,1.7986]
[1741537772298,0.95639,2091.6,2091.4,2.75504]
[1741537772700,0.95639,2091.6,2091.5,0.95642]
[1741537772906,3.2078,2091.9,2091.4,1.7986]
[1741537773201,0.95628,2091.8,2091.4,1.7986]
[1741537773406,0.95639,2091.6,2091.4,2.75502]
[1741537773604,3.2078,2091.9,2091.4,1.7986]
[1741537773903,3.2078,2092.3,2091.5,3.2078]
[1741537774406,0.9563,2091.8,2091.7,0.963506]
[1741537774606,0.9563,2091.8,2091.7,0.007176]
[1741537776811,0.9563,2091.8,2091.7,6e-06]
[1741537777614,4.0,2091.8,2090.9,3.2078]
[1741537777807,0.95661,2091.1,2090.9,3.2078]
[1741537778008,3.2078,2091.2,2090.9,3.2078]
[1741537778204,4.16438,2091.2,2091.0,0.95663]
[1741537778410,3.2078,2091.2,2090.9,3.2078]
[1741537778711,0.95658,2091.2,2091.0,41.75663]
[1741537779119,0.9566,2091.1,2091.0,40.8]
[1741537779414,2.39105,2091.5,2091.0,40.8]
[1741537779614,0.95657,2091.2,2091.0,41.75663]
[1741537779814,0.95645,2091.5,2091.2,0.95652]
[1741537780012,3.2078,2091.6,2091.2,4.16432]
[1741537780214,3.2078,2091.6,2091.2,3.2078]
[1741537780412,0.95651,2091.3,2091.1,0.95656]
[1741537780716,0.95651,2091.3,2091.0,40.8]
[1741537780717,0.9565,2091.4,2091.2,4.16436]
[1741537781011,5.59878,2091.6,2091.0,40.8]
[1741537781218,0.95659,2091.2,2091.0,41.75663]
[1741537781413,0.95658,2091.2,2091.0,41.75663]
[1741537782109,0.95658,2091.2,2091.0,41.75662]
[1741537782417,0.9565,2091.4,2091.2,0.95653]
[1741537782715,6.577,2091.9,2091.2,5.59915]
[1741537782914,0.95634,2091.7,2091.2,5.59915]
[1741537783109,0.95634,2091.7,2091.5,0.9564]
[1741537783308,8.9676,2091.9,2091.4,0.95644]
[1741537784020,0.95642,2091.6,2091.4,0.95644]
[1741537784204,8.9676,2091.9,2091.2,5.7858]
[1741537784410,2.39074,2091.8,2091.3,0.9565]
[1741537784607,0.95646,2091.4,2091.2,5.7858]
[1741537784905,0.95646,2091.5,2091.4,0.95646]
[1741537785316,8.9676,2091.9,2091.2,5.7858]
[1741537785615,6.577,2091.9,2091.2,5.7858]
[1741537785823,6.577,2091.9,2091.5,0.95638]
[1741537785824,0.95637,2091.7,2091.5,0.95638]
[1741537786006,0.95642,2091.6,2091.4,0.95644]
[1741537786210,0.95642,2091.5,2091.4,0.95644]
[1741537786517,0.95641,2091.6,2091.4,0.95644]
[1741537786917,8.96763,2091.9,2091.4,0.95644]
[1741537787113,6.577,2091.9,2091.2,7.4445]
[1741537787412,6.577,2091.9,2091.4,0.95645]
[1741537787413,8.96763,2091.9,2091.4,0.95645]
[1741537787615,0.95641,2091.6,2091.4,0.95645]
[1741537787917,6.577,2091.9,2091.3,2.39128]
[1741537788216,0.95631,2091.8,2091.6,0.95635]
[1741537788417,0.95628,2091.8,2091.6,0.95635]
[1741537788907,6.577,2091.9,2091.3,2.39125]
[1741537789110,6.577,2091.9,2091.5,3.2078]
[1741537789314,3.3692,2091.9,2091.8,0.95628]
[1741537789512,2.63415,2091.9,2091.7,0.9563]
[1741537789714,1.6779,2091.9,2091.5,3.2078]
[1741537789912,1.6779,2091.9,2091.8,0.95628]
[1741537790112,0.96337,2092.0,2091.9,0.95624]
[1741537790113,0.00717,2092.0,2091.9,0.95624]
[1741537790316,0.95625,2091.9,2091.8,0.95627]
[1741537791021,0.00717,2092.0,2091.8,0.95625]
[1741537791319,0.9634,2092.0,2091.8,0.95625]
[1741537791622,0.00717,2092.0,2091.5,4.1642]
[1741537791826,0.95642,2091.5,2091.2,7.4445]
[1741537792014,3.2078,2091.6,2091.3,0.95649]
[1741537792321,0.95643,2091.5,2091.3,0.95649]
[1741537792619,0.95643,2091.5,2091.4,0.95646]
[1741537793322,0.95651,2091.3,2091.2,4.8665]
[1741537793616,0.95651,2091.3,2091.2,4.16436]
[1741537794119,4.8546,2091.6,2091.3,0.9565]
[1741537794316,4.8546,2091.6,2091.2,3.2078]
[1741537794516,0.95648,2091.4,2091.2,4.16432]
[1741537794912,4.8546,2091.6,2091.0,43.376]
[1741537795120,4.8546,2091.6,2091.4,0.95644]
[1741537795320,4.8546,2091.6,2091.2,3.2078]
[1741537795520,0.95646,2091.5,2091.2,3.2078]
[1741537795720,3.2078,2091.9,2091.2,3.2078]
[1741537796021,0.95637,2091.6,2091.5,0.95639]
[1741537796219,0.95634,2091.7,2091.6,0.95636]
[1741537796616,0.95639,2091.6,2091.5,0.9564]
[1741537797222,0.95637,2091.7,2091.5,0.9564]
[1741537797420,3.2078,2091.9,2091.2,3.2078]
[1741537797626,0.95648,2091.4,2091.2,3.2078]
[1741537797817,0.95648,2091.4,2091.2,4.16432]
[1741537798017,1.7435,2091.7,2091.3,0.95648]
[1741537798325,0.9566,2091.1,2091.0,41.75661]
[1741537798726,0.95658,2091.2,2091.0,40.8]
[1741537798922,0.95658,2091.2,2091.0,41.75662]
[1741537799120,0.95658,2091.2,2091.1,0.9566]
[1741537799726,0.95658,2091.2,2091.0,40.8]
[1741537799926,3.2078,2091.5,2091.1,0.95659]
[1741537800115,0.95646,2091.4,2091.0,40.8]
[1741537800314,1.8117,2091.6,2091.0,40.8]
[1741537800626,0.95651,2091.3,2091.2,3.2078]
[1741537800814,0.9566,2091.1,2091.0,40.8]
[1741537801215,3.2078,2091.5,2091.0,40.8]
[1741537801415,3.2078,2091.5,2091.1,0.95657]
[1741537801621,4.16424,2091.5,2091.4,0.95646]
[1741537801825,3.2078,2091.5,2091.0,40.8]
[1741537802226,0.95652,2091.3,2091.2,0.95655]
[1741537802426,3.2078,2091.5,2091.0,40.8]
[1741537802625,0.9566,2091.1,2091.0,41.75664]
[1741537803021,0.9566,2091.1,2091.0,40.8]
[1741537804324,0.9566,2091.1,2091.0,41.75662]
[1741537804517,0.9566,2091.1,2091.0,40.8]
[1741537805430,0.95651,2091.3,2091.0,40.8]
[1741537805622,3.2078,2091.5,2091.0,40.8]
[1741537805824,1.8117,2091.6,2091.5,0.95642]
[1741537806025,0.95646,2091.5,2091.3,4.16428]
[1741537806332,1.7435,2091.7,2091.4,0.95645]
[1741537806532,0.95639,2091.6,2091.5,0.95642]
[1741537806729,0.95642,2091.5,2091.4,0.95644]
[1741537807030,0.95646,2091.4,2091.3,3.2078]
[1741537807531,1.7435,2091.7,2091.3,3.2078]
[1741537807733,0.95644,2091.5,2091.4,0.95644]
[1741537807928,3.2078,2091.8,2091.3,3.2078]
[1741537808129,3.2078,2091.9,2091.3,3.2078]
[1741537808732,0.95635,2091.7,2091.6,0.95637]
[1741537808937,0.95634,2091.7,2091.6,0.95637]
[1741537809233,3.2078,2091.9,2091.8,0.95628]
[1741537809529,0.00717,2092.0,2091.3,3.2078]
[1741537809828,0.00717,2092.0,2091.4,2.575]
[1741537809829,0.95635,2091.7,2091.4,2.575]
[1741537810131,0.95635,2091.7,2091.6,0.95637]
[1741537810528,0.00717,2092.0,2091.4,2.575]
[1741537810730,3.2078,2091.7,2091.3,3.2078]
[1741537810927,3.21497,2092.0,2091.3,3.2078]
[1741537811435,3.2078,2091.9,2091.5,2.39105]
[1741537811626,3.2078,2091.9,2091.7,0.9563]
[1741537811826,4.16405,2091.9,2091.7,0.9563]
[1741537812128,3.2078,2091.9,2091.4,1.6548]
[1741537812628,0.95632,2091.8,2091.6,0.95636]
[1741537813337,0.2757,2091.9,2091.8,0.95628]
[1741537813829,0.2757,2091.9,2091.8,41.75628]
[1741537815832,0.2757,2091.9,2091.8,45.75628]
[1741537816035,0.00717,2092.0,2091.9,0.95624]
[1741537816339,0.00717,2092.0,2091.9,4.16404]
[1741537816535,6.6595,2092.6,2091.9,4.16404]
[1741537816736,6.6595,2092.6,2092.0,2.573]
[1741537817042,0.95609,2092.3,2092.2,0.9561]
[1741537817334,0.95603,2092.4,2092.2,0.95607]
[1741537817531,0.95603,2092.4,2092.0,2.573]
[1741537817733,2.38991,2092.5,2092.1,0.007176]
[1741537817935,0.95613,2092.2,2092.1,0.007176]
[1741537818130,6.6595,2092.6,2092.1,0.007176]
[1741537818336,0.95606,2092.3,2092.2,0.95609]
[1741537818638,0.95603,2092.4,2092.1,0.007176]
[1741537818840,7.61543,2092.6,2092.1,2.397526]
[1741537819144,4.16358,2092.9,2092.2,5.59803]
[1741537819336,4.16361,2092.9,2092.4,2.39003]
[1741537819537,0.95589,2092.7,2092.6,0.9559]
[1741537819731,3.2078,2092.9,2092.8,0.95582]
[1741537820037,4.45979,2093.1,2092.7,3.2078]
[1741537820038,3.5041,2093.1,2092.7,3.2078]
[1741537820237,4.45981,2093.1,2092.9,0.95578]